bitfinex/quotes_BTCUSD_20241226
["timestamp","ask_amount","ask_price","bid_price","bid_amount"]
[1735228504080,0.81236332,96072.0,96071.0,0.0003712]
[1735228504486,1.18526032,96072.0,96071.0,0.0003712]
[1735228504693,1.18526032,96072.0,96060.0,0.0001712]
[1735228504694,0.708401,96061.0,96060.0,0.0001712]
[1735228504933,1.25049241,96061.0,96060.0,0.0001712]
[1735228505134,1.27841221,96061.0,96060.0,0.0001712]
[1735228505335,1.13464821,96061.0,96060.0,0.0001712]
[1735228505968,1.15990431,96061.0,96060.0,0.0001712]
[1735228506389,0.2,96049.0,96048.0,0.000171]
[1735228506591,0.708429,96048.0,96009.0,0.208311]
[1735228506801,0.81241532,96048.0,96009.0,0.208311]
[1735228507221,0.84033512,96048.0,96014.0,0.416603]
[1735228507426,0.81241532,96048.0,96014.0,0.416603]
[1735228507576,0.81241532,96048.0,96047.0,0.00068666]
[1735228507785,0.91640164,96048.0,96047.0,0.00068666]
[1735228508863,1.08349444,96048.0,96047.0,0.00068666]
[1735228509230,0.15,96031.0,96014.0,0.208301]
[1735228509754,0.15,96031.0,96019.0,0.208289]
[1735228509961,0.34094574,96048.0,96032.0,0.208262]
[1735228510158,0.05541637,96047.0,96032.0,0.208262]
[1735228510358,0.00551474,96048.0,96037.0,0.208252]
[1735228510861,0.00551474,96048.0,96037.0,0.416503]
[1735228511131,0.00551474,96048.0,96041.0,0.208242]
[1735228511333,0.00551474,96048.0,96024.0,0.02080429]
[1735228511536,0.00051474,96048.0,96037.0,0.208251]
[1735228512144,0.00351474,96048.0,96037.0,0.208251]
[1735228512548,0.00251474,96048.0,96037.0,0.208251]
[1735228512893,0.02576621,96048.0,96024.0,0.02080429]
[1735228513130,0.12975253,96048.0,96022.0,0.208285]
[1735228513306,0.25,96040.0,96019.0,8.56e-05]
[1735228513531,0.208279,96025.0,96019.0,8.56e-05]
[1735228514203,0.208268,96030.0,96019.0,8.56e-05]
[1735228514408,0.0461833,96029.0,96019.0,8.56e-05]
[1735228514814,0.208272,96028.0,96019.0,8.56e-05]
[1735228515226,0.208272,96028.0,96019.0,0.0050856]
[1735228515423,0.208272,96028.0,96019.0,8.56e-05]
[1735228515674,0.208272,96028.0,96019.0,0.0020856]
[1735228515916,0.02997553,96027.0,96019.0,0.0050856]
[1735228516097,0.02997553,96027.0,96019.0,0.0030856]
[1735228516501,0.02997553,96027.0,96019.0,0.0010856]
[1735228516873,0.02997553,96027.0,96019.0,8.56e-05]
[1735228517307,0.02997553,96027.0,96019.0,0.0010856]
[1735228518005,0.02997553,96027.0,96019.0,0.0050856]
[1735228518203,0.02997553,96027.0,96019.0,0.0010856]
[1735228518406,0.02997553,96027.0,96019.0,0.0050856]
[1735228518874,0.15,96043.0,96019.0,0.0050856]
[1735228519022,0.15,96049.0,96020.0,0.10398632]
[1735228519222,0.15,96049.0,96033.0,0.208261]
[1735228519426,0.0799,96050.0,96037.0,0.208252]
[1735228519626,0.04991832,96047.0,96037.0,0.208252]
[1735228519826,0.0799,96050.0,96037.0,0.208252]
[1735228520027,0.00051474,96048.0,96045.0,0.208235]
[1735228520358,0.00051474,96048.0,96045.0,0.41647]
[1735228521404,0.00051474,96048.0,96045.0,0.208235]
[1735228521624,0.00151474,96048.0,96045.0,0.208235]
[1735228521781,0.00051474,96048.0,96045.0,0.41647]
[1735228521980,0.00251474,96048.0,96045.0,0.41647]
[1735228522183,0.00451474,96048.0,96045.0,0.41647]
[1735228522383,0.00251474,96048.0,96045.0,0.41647]
[1735228522563,0.00051474,96048.0,96045.0,0.41647]
[1735228522941,0.00051474,96048.0,96045.0,0.41747]
[1735228523143,0.00051474,96048.0,96046.0,0.10398632]
[1735228523348,0.00051474,96048.0,96047.0,0.208231]
[1735228523522,0.00051474,96048.0,96047.0,0.31221732]
[1735228525039,0.00051474,96048.0,96047.0,0.31521732]
[1735228525234,0.00051474,96048.0,96047.0,0.31221732]
[1735228525616,0.00051474,96048.0,96047.0,0.31421732]
[1735228525823,0.00051474,96048.0,96047.0,0.31221732]
[1735228526025,0.00051474,96048.0,96047.0,0.002]
[1735228526590,0.00051474,96048.0,96047.0,0.003]
[1735228526981,0.00051474,96048.0,96047.0,0.002]
[1735228527202,0.00051474,96048.0,96045.0,8.56e-05]
[1735228527569,0.00051474,96048.0,96047.0,0.002]
[1735228527776,0.00051474,96048.0,96047.0,0.001]
[1735228528199,0.00051474,96048.0,96047.0,0.10598632]
[1735228528807,0.00051474,96048.0,96047.0,0.10602741]
[1735228529056,0.00051474,96048.0,96047.0,0.10398632]
[1735228529265,0.00051474,96048.0,96047.0,0.10498632]
[1735228530017,0.00051474,96048.0,96047.0,0.10602735]
[1735228530216,0.00051474,96048.0,96047.0,0.10498632]
[1735228530419,0.00051474,96048.0,96045.0,8.56e-05]
[1735228530624,0.00051474,96048.0,96047.0,0.001]
[1735228531074,0.00051474,96048.0,96045.0,0.2083196]
[1735228531247,0.00051474,96048.0,96047.0,0.209231]
[1735228531462,0.00051474,96048.0,96047.0,0.31221732]
[1735228532265,0.00051474,96048.0,96047.0,0.31321732]
[1735228532446,0.00051474,96048.0,96047.0,0.001]
[1735228533171,0.00051474,96048.0,96047.0,0.003]
[1735228533591,0.00051474,96048.0,96047.0,0.002]
[1735228533790,0.00051474,96048.0,96045.0,0.2083196]
[1735228533997,0.00051474,96048.0,96047.0,0.009]
[1735228534295,0.00051474,96048.0,96047.0,0.003]
[1735228534451,0.00051474,96048.0,96047.0,0.01]
[1735228534650,0.00051474,96048.0,96047.0,0.003]
[1735228535675,0.00068614,96048.0,96047.0,0.003]
[1735228536055,0.00068614,96048.0,96045.0,0.2083196]
[1735228536276,0.00068614,96048.0,96045.0,0.4195546]
[1735228536688,0.00068614,96048.0,96047.0,0.007]
[1735228536816,0.00068614,96048.0,96045.0,0.4165546]
[1735228537023,0.00068614,96048.0,96047.0,0.003]
[1735228537700,0.00068614,96048.0,96045.0,0.4165546]
[1735228538005,0.00068614,96048.0,96047.0,0.007]
[1735228538419,0.00068614,96048.0,96047.0,0.11098632]
[1735228538833,0.00068614,96048.0,96047.0,0.10398632]
[1735228539239,0.00068614,96048.0,96045.0,0.2113196]
[1735228539600,0.00068614,96048.0,96045.0,0.2083196]
[1735228539996,0.00068614,96048.0,96047.0,0.003]
[1735228540405,0.00068614,96048.0,96045.0,0.4165546]
[1735228540953,0.00068614,96048.0,96045.0,0.4195546]
[1735228541370,0.00068614,96048.0,96047.0,0.007]
[1735228541700,0.00068614,96048.0,96045.0,0.4195546]
[1735228541877,0.00068614,96048.0,96045.0,0.4265546]
[1735228542206,0.00068614,96048.0,96045.0,0.4195546]
[1735228542350,0.00068614,96048.0,96047.0,0.007]
[1735228542755,0.00068614,96048.0,96047.0,0.01]
[1735228543340,0.00068614,96048.0,96047.0,0.007]
[1735228543787,0.00068614,96048.0,96047.0,0.003]
[1735228544190,0.01327475,96048.0,96047.0,0.003]
[1735228544545,0.01327475,96048.0,96047.0,0.01]
[1735228545506,0.00068614,96048.0,96047.0,0.01]
[1735228548441,0.00068614,96048.0,96047.0,0.19298632]
[1735228548644,0.00068614,96048.0,96047.0,0.19402736]
[1735228549238,0.00068614,96048.0,96047.0,0.34102736]
[1735228549442,0.00068614,96048.0,96047.0,0.33998632]
[1735228549647,0.00068614,96048.0,96047.0,0.34198632]
[1735228549982,0.00068614,96048.0,96047.0,0.33498632]
[1735228550187,1.4e-07,96048.0,96047.0,0.43498632]
[1735228550415,1.4e-07,96048.0,96047.0,0.55598632]
[1735228550786,1.4e-07,96048.0,96047.0,0.55998632]
[1735228551366,1.4e-07,96048.0,96047.0,0.56598632]
[1735228551903,1.4e-07,96048.0,96047.0,0.34298632]
[1735228552108,1.4e-07,96048.0,96047.0,0.53697264]
[1735228552583,1.4e-07,96048.0,96047.0,0.54197264]
[1735228552793,1.4e-07,96048.0,96047.0,0.64197264]
[1735228552996,1.4e-07,96048.0,96047.0,1.20077264]
[1735228553215,1.4e-07,96048.0,96047.0,1.20577264]
[1735228553774,1.4e-07,96048.0,96047.0,1.20977264]
[1735228553973,1.4e-07,96048.0,96047.0,1.21477264]
[1735228554380,1.4e-07,96048.0,96047.0,1.10178632]
[1735228554807,1.4e-07,96048.0,96047.0,1.11078632]
[1735228555012,1.4e-07,96048.0,96047.0,1.14281581]
[1735228555205,1.4e-07,96048.0,96047.0,1.15181581]
[1735228555378,1.4e-07,96048.0,96047.0,1.14681581]
[1735228555746,1.4e-07,96048.0,96047.0,1.22477264]
[1735228555957,1.4e-07,96048.0,96047.0,1.26734131]
[1735228556283,1.4e-07,96048.0,96047.0,1.26134131]
[1735228556491,1.4e-07,96048.0,96047.0,1.26734131]
[1735228557293,1.4e-07,96048.0,96047.0,1.24334131]
[1735228557492,1.4e-07,96048.0,96047.0,1.25234131]
[1735228558179,1.4e-07,96048.0,96047.0,1.26134131]
[1735228558386,1.4e-07,96048.0,96047.0,1.22932158]
[1735228559027,1.4e-07,96048.0,96047.0,1.2612963]
[1735228559231,1.4e-07,96048.0,96047.0,0.90933526]
[1735228559586,1.4e-07,96048.0,96047.0,0.93033526]
[1735228559788,1.4e-07,96048.0,96047.0,0.91233526]
[1735228559967,1.4e-07,96048.0,96047.0,0.37153526]
[1735228560162,1.4e-07,96048.0,96047.0,0.48452158]
[1735228560364,1.4e-07,96048.0,96047.0,0.38053526]
[1735228560568,1.4e-07,96048.0,96047.0,0.47153526]
[1735228560767,1.4e-07,96048.0,96047.0,0.48053526]
[1735228561263,1.4e-07,96048.0,96047.0,0.47353526]
[1735228561512,1.4e-07,96048.0,96047.0,0.46453526]
[1735228561735,1.4e-07,96048.0,96047.0,1.13775187]
[1735228561935,1.4e-07,96048.0,96047.0,1.14675187]
[1735228562150,1.4e-07,96048.0,96047.0,1.22865187]
[1735228562278,0.07198976,96071.0,96070.0,0.458181]
[1735228562504,7.6e-07,96071.0,96070.0,0.67632623]
[1735228562720,7.6e-07,96104.0,96085.0,0.208149]
[1735228562932,7.6e-07,96104.0,96085.0,0.31213532]
[1735228563357,2e-07,96086.0,96085.0,0.76703532]
[1735228563577,2e-07,96086.0,96085.0,0.86455405]
[1735228564044,2e-07,96086.0,96085.0,0.86470834]
[1735228564283,2e-07,96086.0,96085.0,0.87270834]
[1735228564484,2e-07,96086.0,96085.0,0.86670834]
[1735228564776,0.13928353,96137.0,96115.0,0.208084]
[1735228564978,0.13928353,96137.0,96115.0,0.33269682]
[1735228565396,0.0498,96144.0,96115.0,0.31207032]
[1735228565634,0.0764,96115.0,96103.0,0.5408]
[1735228565843,0.0498,96114.0,96072.0,0.1384048]
[1735228566017,0.208089,96113.0,96096.0,0.208123]
[1735228566217,0.05424496,96113.0,96096.0,0.208123]
[1735228566432,0.1998,96114.0,96097.0,0.208121]
[1735228567023,0.1998,96114.0,96101.0,0.208112]
[1735228567220,0.1998,96114.0,96103.0,0.20811]
[1735228568350,0.1998,96114.0,96098.0,0.20812]
[1735228568555,0.1998,96114.0,96096.0,0.208123]
[1735228568760,0.1998,96114.0,96101.0,0.208114]
[1735228568971,8.56e-05,96116.0,96113.0,0.208088]
[1735228569192,8.56e-05,96116.0,96114.0,0.10502663]
[1735228569400,8.56e-05,96116.0,96115.0,0.31207032]
[1735228570970,8.56e-05,96116.0,96115.0,0.32107032]
[1735228571150,8.56e-05,96116.0,96115.0,0.41627422]
[1735228572303,8.56e-05,96116.0,96115.0,0.42027422]
[1735228572632,6e-07,96116.0,96115.0,0.77297422]
[1735228572831,6e-07,96116.0,96115.0,1.40977422]
[1735228573066,6e-07,96116.0,96115.0,1.40577422]
[1735228573277,6e-07,96116.0,96115.0,1.41477422]
[1735228573849,6e-07,96116.0,96115.0,1.40977422]
[1735228574098,6e-07,96116.0,96115.0,1.40077422]
[1735228574981,6e-07,96116.0,96115.0,1.42027897]
[1735228575182,6e-07,96116.0,96115.0,1.42627897]
[1735228575600,6e-07,96116.0,96115.0,0.48757507]
[1735228575807,6e-07,96116.0,96115.0,0.58757507]
[1735228575963,6e-07,96116.0,96115.0,0.48757507]
[1735228576168,6e-07,96116.0,96115.0,0.57857507]
[1735228576368,6e-07,96116.0,96115.0,0.58757507]
[1735228576652,6e-07,96116.0,96115.0,0.48157507]
[1735228576855,6e-07,96116.0,96115.0,0.47857507]
[1735228577060,6e-07,96116.0,96115.0,0.48757507]
[1735228577190,6e-07,96116.0,96115.0,0.47857507]
[1735228577595,6e-07,96116.0,96115.0,0.58757507]
[1735228577834,6e-07,96116.0,96115.0,0.69156139]
[1735228578009,6e-07,96116.0,96115.0,0.68256139]
[1735228578179,6e-07,96116.0,96115.0,0.67656139]
[1735228578631,6e-07,96116.0,96115.0,0.68156139]
[1735228579033,6e-07,96116.0,96115.0,0.67656139]
[1735228579442,6e-07,96116.0,96115.0,0.69056139]
[1735228579798,6e-07,96116.0,96115.0,0.68156139]
[1735228580092,6e-07,96116.0,96115.0,0.58157507]
[1735228580407,6e-07,96116.0,96115.0,0.57757507]
[1735228580526,6e-07,96116.0,96115.0,0.58657507]
[1735228580947,6e-07,96116.0,96115.0,0.48657507]
[1735228581150,6e-07,96116.0,96115.0,0.49557507]
[1735228581354,6e-07,96116.0,96115.0,0.59557507]
[1735228581642,6e-07,96116.0,96115.0,0.49057507]
[1735228581981,6e-07,96116.0,96115.0,0.49566067]
[1735228582409,6e-07,96116.0,96115.0,0.47266067]
[1735228582580,6e-07,96116.0,96115.0,0.48166067]
[1735228582960,6e-07,96116.0,96115.0,0.57766067]
[1735228583280,6e-07,96116.0,96115.0,0.48666067]
[1735228583487,6e-07,96116.0,96115.0,0.48166067]
[1735228583833,6e-07,96116.0,96115.0,0.57266067]
[1735228584039,6e-07,96116.0,96115.0,0.68254757]
[1735228584195,6e-07,96116.0,96115.0,0.58066067]
[1735228584397,6e-07,96116.0,96115.0,0.48066067]
[1735228584602,6e-07,96116.0,96115.0,0.33066067]
[1735228584980,6e-07,96116.0,96115.0,0.33266067]
[1735228585668,6e-07,96116.0,96115.0,0.33966067]
[1735228585869,6e-07,96116.0,96115.0,0.32466067]
[1735228586101,6e-07,96116.0,96115.0,0.33266067]
[1735228586368,6e-07,96116.0,96115.0,0.33066067]
[1735228586598,6e-07,96116.0,96115.0,0.33566067]
[1735228586815,6e-07,96116.0,96115.0,0.34466067]
[1735228587026,6e-07,96116.0,96115.0,0.42484757]
[1735228587232,6e-07,96116.0,96115.0,0.80484757]
[1735228587376,6e-07,96116.0,96115.0,0.88354757]
[1735228587583,6e-07,96116.0,96115.0,1.46600457]
[1735228587964,0.0001712,96145.0,96144.0,0.208021]
[1735228588168,0.0001712,96145.0,96144.0,0.34196565]
[1735228589270,0.0001712,96145.0,96144.0,0.34996565]
[1735228590063,0.0001712,96145.0,96144.0,0.35196565]
[1735228591086,0.0001712,96145.0,96144.0,0.34996565]
[1735228591500,0.0001712,96145.0,96144.0,0.34196565]
[1735228591701,0.0001712,96145.0,96144.0,0.34996565]
[1735228591904,0.0001712,96145.0,96144.0,0.32000732]
[1735228592108,0.0001712,96145.0,96144.0,0.31200732]
[1735228592309,0.0001712,96145.0,96144.0,0.32100732]
[1735228592489,0.0001712,96145.0,96144.0,0.32400732]
[1735228593208,0.0001712,96145.0,96144.0,0.31500732]
[1735228593414,0.0001712,96145.0,96144.0,0.41899364]
[1735228593611,0.0001712,96145.0,96144.0,0.42499364]
[1735228593824,0.0001712,96145.0,96144.0,0.42799364]
[1735228594647,0.0001712,96145.0,96144.0,0.43844472]
[1735228594849,0.0001712,96145.0,96144.0,0.43544472]
[1735228595056,0.0001712,96145.0,96144.0,0.45655137]
[1735228595262,0.0001712,96145.0,96144.0,0.44755137]
[1735228595584,0.0001712,96145.0,96144.0,0.45655137]
[1735228596431,0.0001712,96145.0,96144.0,0.46055137]
[1735228596741,0.0001712,96145.0,96144.0,0.45655137]
[1735228597154,0.0001712,96145.0,96144.0,0.35756505]
[1735228597815,0.0001712,96145.0,96144.0,0.34856505]
[1735228598018,0.0001712,96145.0,96144.0,0.35256505]
[1735228598765,0.0001712,96145.0,96144.0,0.34356505]
[1735228599206,0.0001712,96145.0,96144.0,0.35256505]
[1735228599733,0.0001712,96145.0,96144.0,0.35756505]
[1735228600289,0.0001712,96145.0,96144.0,0.35256505]
[1735228600851,0.0001712,96145.0,96144.0,0.35756505]
[1735228601874,0.0001712,96145.0,96144.0,0.34856505]
[1735228602175,0.0001712,96145.0,96144.0,0.35756505]
[1735228602490,0.0001712,96145.0,96144.0,0.38951578]
[1735228602817,0.0001712,96145.0,96144.0,0.38451578]
[1735228603132,0.0001712,96145.0,96144.0,0.39051578]
[1735228603554,0.0001712,96145.0,96144.0,0.4945021]
[1735228605047,0.0001712,96145.0,96144.0,0.39051578]
[1735228606695,0.0001712,96145.0,96144.0,0.35856505]
[1735228606872,0.0764712,96145.0,96144.0,0.34811397]
[1735228607281,0.0764712,96145.0,96144.0,0.14009297]
[1735228607504,0.1250712,96145.0,96144.0,0.03610665]
[1735228609828,0.1250712,96145.0,96144.0,0.015]
[1735228610216,0.1250712,96145.0,96144.0,0.11898632]
[1735228610415,0.0001712,96145.0,96144.0,0.15518524]
[1735228610622,0.0001712,96145.0,96144.0,0.15022516]
[1735228610816,0.0001712,96145.0,96144.0,0.15822516]
[1735228611057,0.0001712,96145.0,96144.0,0.10702624]
[1735228611394,0.0001712,96145.0,96144.0,0.11202624]
[1735228611771,0.0001712,96145.0,96144.0,0.11402624]
[1735228612149,0.0001712,96145.0,96144.0,0.10702624]
[1735228612352,0.0001712,96145.0,96144.0,0.11402624]
[1735228612555,0.0001712,96145.0,96144.0,0.11702624]
[1735228613336,0.0001712,96145.0,96144.0,0.11598632]
[1735228613735,0.0001712,96145.0,96144.0,0.10698632]
[1735228614061,0.0001712,96145.0,96144.0,0.11598632]
[1735228614256,0.0001712,96145.0,96144.0,0.10398632]
[1735228614675,0.0001712,96145.0,96144.0,0.10898632]
[1735228615048,0.0001712,96145.0,96144.0,0.10398632]
[1735228615386,0.0001712,96145.0,96144.0,0.10898632]
[1735228615587,0.0001712,96145.0,96144.0,0.11798632]
[1735228615929,0.0001712,96145.0,96144.0,0.11298632]
[1735228616276,0.0001712,96145.0,96144.0,0.11698632]
[1735228616674,0.0001712,96145.0,96144.0,0.013]
[1735228617103,0.0001712,96145.0,96144.0,0.004]
[1735228617466,0.0001712,96145.0,96144.0,0.013]
[1735228617666,0.0001712,96145.0,96144.0,0.004]
[1735228618132,0.0001712,96145.0,96144.0,0.009]
[1735228618346,0.0001712,96145.0,96144.0,0.012]
[1735228618955,0.0001712,96145.0,96138.0,0.208032]
[1735228618956,0.0001712,96145.0,96136.0,0.208038]
[1735228619153,0.0764,96144.0,96121.0,0.10398632]
[1735228619618,0.0764,96144.0,96136.0,0.208037]
[1735228620150,0.0764,96144.0,96134.0,0.208041]
[1735228620355,0.00766568,96143.0,96134.0,0.208041]
[1735228620565,0.0764,96141.0,96124.0,0.208063]
[1735228620787,0.0764,96139.0,96120.0,0.208071]
[1735228620989,0.0001712,96145.0,96115.0,8.56e-05]
[1735228620990,0.2264,96131.0,96115.0,8.56e-05]
[1735228621309,0.208058,96127.0,96115.0,8.56e-05]
[1735228621510,0.208055,96128.0,96115.0,8.56e-05]
[1735228621711,0.0764,96127.0,96116.0,0.2081656]
[1735228621940,0.0764,96127.0,96124.0,0.006]
[1735228622139,0.0764,96127.0,96117.0,0.208079]
[1735228622345,0.10389,96127.0,96117.0,0.208079]
[1735228622613,0.10389,96127.0,96116.0,0.0090856]
[1735228622844,0.0764,96126.0,96116.0,8.56e-05]
[1735228623864,0.284462,96126.0,96116.0,8.56e-05]
[1735228624041,0.284462,96126.0,96124.0,0.009]
[1735228624462,0.0764,96126.0,96116.0,8.56e-05]
[1735228624702,0.0764,96126.0,96116.0,0.0120856]
[1735228625273,0.0764,96126.0,96116.0,0.0090856]
[1735228625482,0.0764,96126.0,96116.0,8.56e-05]
[1735228625677,0.0764,96126.0,96124.0,0.009]
[1735228626922,0.0764,96126.0,96116.0,8.56e-05]
[1735228627330,0.0764,96126.0,96116.0,0.0010856]
[1735228627709,0.0764,96126.0,96116.0,8.56e-05]
[1735228627915,0.0764,96126.0,96124.0,0.001]
[1735228628133,0.0764,96126.0,96116.0,8.56e-05]
[1735228628911,0.0764,96126.0,96124.0,0.208064]
[1735228629040,0.0764,96126.0,96124.0,0.31205032]
[1735228630859,0.0764,96126.0,96124.0,0.31305032]
[1735228632696,0.0758,96134.0,96131.0,0.208049]
[1735228633210,0.0758,96134.0,96120.0,0.208071]
[1735228633534,0.0758,96131.0,96124.0,0.001]
[1735228633855,0.208056,96128.0,96116.0,8.56e-05]
[1735228634050,0.20806,96126.0,96116.0,8.56e-05]
[1735228634453,0.0758,96127.0,96116.0,8.56e-05]
[1735228636441,0.0758,96127.0,96116.0,0.0010856]
[1735228636639,0.12655313,96127.0,96116.0,0.0010856]
[1735228636847,0.0758,96127.0,96116.0,0.0010856]
[1735228641286,0.0759712,96127.0,96116.0,0.0010856]
[1735228643695,0.2252,96120.0,96116.0,0.0010856]
[1735228643923,0.3971,96117.0,96116.0,0.0010856]
[1735228644239,0.0752,96089.0,96067.0,0.02077553]
[1735228644449,0.0489,96088.0,96077.0,0.00015429]
[1735228645234,0.0752,96098.0,96078.0,0.10398632]
[1735228645508,0.0752,96098.0,96079.0,0.00104068]
[1735228645697,0.00752,96097.0,96080.0,0.105027]
[1735228645826,0.15,96106.0,96094.0,0.208128]
[1735228647033,0.0752,96108.0,96094.0,0.208128]
[1735228647232,0.0752,96108.0,96094.0,0.209128]
[1735228648084,0.15,96106.0,96094.0,0.209128]
[1735228649132,0.15,96106.0,96094.0,0.001]
[1735228649401,0.0583201,96105.0,96094.0,0.001]
[1735228649640,0.0583201,96105.0,96084.0,0.208149]
[1735228650029,0.1241,96090.0,96073.0,0.22942036]
[1735228650270,0.1241,96090.0,96078.0,0.208164]
[1735228651058,0.1241,96090.0,96078.0,0.20605498]
[1735228651266,0.20814,96089.0,96077.0,0.20931929]
[1735228651468,0.0752,96100.0,96091.0,0.208133]
[1735228651677,0.17741,96099.0,96078.0,0.10698632]
[1735228652103,0.0752,96100.0,96095.0,0.208126]
[1735228653116,0.0752,96100.0,96094.0,0.208127]
[1735228653679,0.0762,96100.0,96094.0,0.208127]
[1735228654003,0.0752,96100.0,96094.0,0.208127]
[1735228654208,0.0762,96100.0,96094.0,0.208127]
[1735228654407,0.01251,96099.0,96094.0,0.208127]
[1735228655113,0.0762,96100.0,96088.0,0.208142]
[1735228655912,0.0762,96100.0,96094.0,0.208129]
[1735228656438,0.0752,96100.0,96094.0,0.208129]
[1735228657273,0.0762,96100.0,96094.0,0.208129]
[1735228657521,0.0762,96100.0,96098.0,0.208119]
[1735228657902,0.0762,96100.0,96094.0,0.208129]
[1735228658296,0.08871,96100.0,96094.0,0.208129]
[1735228659245,0.08871,96100.0,96098.0,0.20812]
[1735228659607,0.08771,96100.0,96094.0,0.208129]
[1735228659805,0.08871,96100.0,96094.0,0.208129]
[1735228660594,0.08771,96100.0,96088.0,0.208142]
[1735228660795,0.001,96100.0,96099.0,0.208118]
[1735228662565,0.0817,96115.0,96103.0,0.208108]
[1735228663223,0.0464,96118.0,96078.0,0.208164]
[1735228663224,0.023,96104.0,96078.0,0.208164]
[1735228663346,0.023,96104.0,96077.0,0.00023989]
[1735228663347,0.208122,96098.0,96077.0,0.02105762]
[1735228663549,0.208122,96098.0,96080.0,0.416317]
[1735228664366,0.2317,96093.0,96080.0,0.208158]
[1735228664609,0.2317,96093.0,96077.0,0.00023989]
[1735228664811,0.2521155,96092.0,96078.0,0.208164]
[1735228665079,0.0439825,96092.0,96078.0,0.208164]
[1735228665227,0.0439825,96092.0,96078.0,0.416328]
[1735228665670,0.0439825,96092.0,96079.0,0.208162]
[1735228665818,0.0439825,96092.0,96078.0,0.208164]
[1735228666021,0.0817,96093.0,96090.0,0.208137]
[1735228666221,0.0817,96105.0,96102.0,0.208111]
[1735228666426,0.13972837,96104.0,96102.0,0.416222]
[1735228667242,0.04482474,96104.0,96103.0,0.18648632]
[1735228667440,0.0933878,96124.0,96103.0,0.27756885]
[1735228667651,0.0933878,96124.0,96123.0,0.208066]
[1735228667850,0.254411,96149.0,96123.0,0.10398632]
[1735228668112,0.254411,96149.0,96124.0,0.31205032]
[1735228669087,0.15,96148.0,96124.0,0.52011432]
[1735228669306,0.0464,96149.0,96124.0,0.52011432]
[1735228669511,0.0464,96149.0,96124.0,0.54717702]
[1735228669724,0.0464,96149.0,96125.0,0.00104024]
[1735228670009,0.09336061,96164.0,96126.0,0.31204632]
[1735228670215,0.0817,96163.0,96126.0,0.31204632]
[1735228670431,0.289682,96163.0,96126.0,0.31204632]
[1735228671442,0.0817,96163.0,96126.0,0.31204632]
[1735228671843,0.0817,96163.0,96126.0,0.31404632]
[1735228672445,0.0817,96163.0,96126.0,0.31204632]
[1735228672656,0.0817,96163.0,96126.0,0.37205735]
[1735228672862,0.0817,96163.0,96126.0,0.31404632]
[1735228673162,0.0817,96163.0,96126.0,0.34371253]
[1735228674068,0.0817,96163.0,96126.0,0.33271253]
[1735228674226,0.0817,96163.0,96126.0,0.34171253]
[1735228674428,0.0817,96163.0,96126.0,0.34571253]
[1735228674947,0.207988,96160.0,96126.0,0.34171253]
[1735228675186,0.207988,96160.0,96126.0,0.34571253]
[1735228675900,0.207988,96160.0,96126.0,0.33271253]
[1735228676316,0.207988,96160.0,96126.0,0.34171253]
[1735228676721,0.207988,96160.0,96126.0,0.35071253]
[1735228677027,0.0817,96163.0,96126.0,0.39861602]
[1735228677227,0.0817,96163.0,96126.0,0.40761602]
[1735228677380,0.0817,96163.0,96126.0,0.41161602]
[1735228677789,0.0817,96163.0,96126.0,0.40761602]
[1735228678218,0.0817,96163.0,96126.0,0.41161602]
[1735228678578,0.28968,96163.0,96126.0,0.35471253]
[1735228679268,0.28968,96163.0,96126.0,0.33271253]
[1735228679864,0.28968,96163.0,96126.0,0.34171253]
[1735228680402,0.28968,96163.0,96126.0,0.33271253]
[1735228680603,0.28968,96163.0,96126.0,0.33671253]
[1735228680812,0.28968,96163.0,96126.0,0.34571253]
[1735228681278,0.28968,96163.0,96126.0,0.34171253]
[1735228681909,0.28968,96163.0,96126.0,0.34471253]
[1735228682085,0.28968,96163.0,96126.0,0.39171602]
[1735228682285,0.28968,96163.0,96126.0,0.38871602]
[1735228682492,0.28968,96163.0,96126.0,0.39771602]
[1735228682861,0.28968,96163.0,96126.0,0.34571253]
[1735228683411,0.28968,96163.0,96126.0,0.33671253]
[1735228683817,0.28968,96163.0,96126.0,0.34571253]
[1735228684837,0.207991,96158.0,96126.0,0.34571253]
[1735228685050,0.416001,96154.0,96126.0,0.34571253]
[1735228685303,0.0758,96134.0,96126.0,0.23006]
[1735228685704,0.0758,96134.0,96126.0,0.21206]
[1735228685882,0.0758,96134.0,96126.0,0.21706]
[1735228686205,0.0758,96134.0,96126.0,0.21306]
[1735228686566,0.0758,96134.0,96126.0,0.21406]
[1735228686744,0.0758,96134.0,96126.0,0.20806]
[1735228686949,0.0758,96134.0,96126.0,0.21306]
[1735228688074,0.0758,96134.0,96126.0,0.21406]
[1735228688869,0.0758,96134.0,96126.0,0.21306]
[1735228689394,0.0758,96134.0,96126.0,0.20906]
[1735228689549,0.0758,96134.0,96126.0,0.21506]
[1735228689744,0.0758,96134.0,96126.0,0.21406]
[1735228690988,0.0758,96134.0,96126.0,0.20806]
[1735228691191,0.0758,96134.0,96126.0,0.21006]
[1735228691618,0.0758,96134.0,96126.0,0.20806]
[1735228692071,0.0758,96134.0,96126.0,0.31304632]
[1735228692250,0.0755712,96145.0,96126.0,0.31804632]
[1735228692672,0.0755712,96145.0,96126.0,0.31204632]
[1735228692853,0.0755712,96145.0,96126.0,0.31804632]
[1735228693190,0.0755712,96145.0,96126.0,0.31304632]
[1735228693487,0.0755712,96145.0,96126.0,0.31804632]
[1735228694404,0.0755712,96145.0,96126.0,0.31704632]
[1735228694543,0.0755712,96145.0,96126.0,0.31804632]
[1735228695178,1.0,96140.0,96126.0,0.21306]
[1735228695355,1.0,96140.0,96126.0,0.20806]
[1735228695581,1.0,96140.0,96126.0,0.21406]
[1735228696040,1.0,96140.0,96126.0,0.21306]
[1735228696253,1.0,96140.0,96126.0,0.21806]
[1735228696441,1.0,96140.0,96126.0,0.31304632]
[1735228696742,1.0,96140.0,96126.0,0.39484632]
[1735228697721,1.0,96140.0,96126.0,0.39384632]
[1735228697955,1.0,96140.0,96126.0,0.54484632]
[1735228698352,1.0,96140.0,96126.0,0.53984632]
[1735228698550,1.0,96140.0,96126.0,0.55253161]
[1735228699401,1.0,96140.0,96126.0,0.55053161]
[1735228699917,1.0,96140.0,96126.0,0.55953161]
[1735228700087,1.0,96140.0,96126.0,0.55053161]
[1735228700325,1.0,96140.0,96126.0,0.55953161]
[1735228700964,1.0,96140.0,96126.0,0.55553161]
[1735228701137,1.0,96140.0,96126.0,0.56587686]
[1735228701347,1.0,96140.0,96126.0,0.65930172]